bitfinex/quotes_BTCUSD_20251104
["timestamp","ask_amount","ask_price","bid_price","bid_amount"]
[1762297964765,0.27300984,101080.0,101070.0,0.001]
[1762297964969,0.85403453,101080.0,101070.0,0.001]
[1762297965487,0.27300984,101080.0,101070.0,0.001]
[1762297966753,3.19403453,101080.0,101070.0,0.001]
[1762297968383,3.3958687,101080.0,101070.0,0.001]
[1762297968861,0.19790223,101060.0,101050.0,0.01011632]
[1762297969016,0.22597223,101060.0,101050.0,0.01011632]
[1762297969219,0.22597223,101060.0,101050.0,0.00022632]
[1762297969660,0.22597223,101060.0,101050.0,0.19814814]
[1762297969837,0.21002223,101060.0,101050.0,0.20803814]
[1762297970039,0.21002223,101060.0,101050.0,0.01011632]
[1762297970286,0.22597223,101060.0,101050.0,0.01011632]
[1762297970419,0.24984223,101060.0,101050.0,0.01311632]
[1762297972240,0.24984223,101060.0,101050.0,0.00322632]
[1762297972442,0.24984223,101060.0,101050.0,0.20114814]
[1762297972659,0.001,101060.0,101050.0,0.22644814]
[1762297972856,0.19890223,101060.0,101050.0,0.22644814]
[1762297973657,0.19890223,101060.0,101050.0,0.02852632]
[1762297974299,0.19890223,101060.0,101050.0,0.22644814]
[1762297975066,0.19890223,101060.0,101050.0,0.02852632]
[1762297975280,0.19890223,101060.0,101050.0,0.22644814]
[1762297975504,0.19790223,101060.0,101050.0,0.22644814]
[1762297976982,0.19790223,101060.0,101050.0,0.02852632]
[1762297977401,0.19790223,101060.0,101050.0,0.22644814]
[1762297978896,0.19790047,101070.0,101060.0,0.19790223]
[1762297979099,0.19790047,101070.0,101060.0,0.21331223]
[1762297979492,0.19790047,101070.0,101060.0,0.23671223]
[1762297979996,0.28880299,101080.0,101060.0,0.23871223]
[1762297980347,0.20790071,101080.0,101070.0,0.19788265]
[1762297980548,0.20790071,101080.0,101070.0,0.23669265]
[1762297980549,0.00014449,101080.0,101070.0,0.23669265]
[1762297980923,0.00014449,101080.0,101070.0,0.69710921]
[1762297981214,0.00014449,101080.0,101070.0,1.53254808]
[1762297981366,0.00014449,101080.0,101070.0,0.74968922]
[1762297981771,0.19800756,101080.0,101070.0,0.69710921]
[1762297982154,0.00014449,101080.0,101070.0,0.69710921]
[1762297982487,0.00114449,101080.0,101070.0,0.70210921]
[1762297983355,0.19900756,101080.0,101070.0,0.70210921]
[1762297983556,0.23782756,101080.0,101070.0,0.005]
[1762297983807,0.19900756,101080.0,101070.0,0.21829265]
[1762297983951,0.19900756,101080.0,101070.0,0.02041]
[1762297984135,0.19900756,101080.0,101070.0,0.005]
[1762297984335,0.27400984,101080.0,101070.0,0.005]
[1762297985795,0.19790223,101060.0,101050.0,0.11887954]
[1762297986304,0.19790223,101060.0,101050.0,0.02552632]
[1762297986523,0.19790223,101060.0,101050.0,0.01011632]
[1762297986664,0.19790223,101060.0,101050.0,0.20803814]
[1762297987471,0.19790223,101060.0,101050.0,0.01011632]
[1762297987677,0.19790223,101060.0,101050.0,0.09547954]
[1762297987878,0.21385223,101060.0,101050.0,0.01011632]
[1762297988082,0.23672223,101060.0,101050.0,0.00622632]
[1762297988307,0.23772223,101060.0,101050.0,0.00622632]
[1762297988520,0.23772223,101060.0,101050.0,0.01611632]
[1762297988521,0.21485223,101060.0,101050.0,0.01611632]
[1762297988847,0.19890223,101060.0,101050.0,0.22944814]
[1762297988971,0.19790223,101060.0,101050.0,0.21844814]
[1762297989176,0.1979003,101070.0,101060.0,0.19790223]
[1762297989418,0.1979003,101070.0,101060.0,0.21331223]
[1762297990366,0.1979003,101070.0,101060.0,0.01541]
[1762297991674,0.1989003,101070.0,101060.0,0.02041]
[1762297993348,0.001,101070.0,101060.0,0.24172223]
[1762297993549,0.001,101070.0,101060.0,1.02458109]
[1762297993684,0.001,101070.0,101060.0,1.11221444]
[1762297993889,0.001,101070.0,101060.0,1.45221444]
[1762297994301,0.001,101070.0,101060.0,1.4171611]
[1762297994499,0.001,101070.0,101060.0,1.43552598]
[1762297994889,0.00014449,101080.0,101070.0,0.53788265]
[1762297995081,0.00014449,101080.0,101070.0,0.75197038]
[1762297995283,0.00014449,101080.0,101070.0,0.79665038]
[1762297995478,0.00014449,101080.0,101070.0,1.57950924]
[1762297996281,0.00014449,101080.0,101070.0,1.52622653]
[1762297996478,0.00014449,101080.0,101070.0,1.57950924]
[1762297997140,0.00014449,101080.0,101070.0,0.71128716]
[1762297997357,0.00014449,101080.0,101070.0,0.65800445]
[1762297997584,0.19900756,101080.0,101070.0,0.1241218]
[1762297997855,0.19900756,101080.0,101070.0,0.04868]
[1762297998036,0.19900756,101080.0,101070.0,0.34843587]
[1762297998250,0.19900756,101080.0,101070.0,0.30375587]
[1762297998625,0.19900756,101080.0,101070.0,0.21839265]
[1762297998829,0.19900756,101080.0,101070.0,0.32716587]
[1762297999013,0.19900756,101080.0,101070.0,0.10587322]
[1762297999849,0.19900756,101080.0,101070.0,0.30375587]
[1762298000348,0.19900756,101080.0,101070.0,0.10587322]
[1762298000549,0.19900756,101080.0,101070.0,0.30375587]
[1762298001480,0.19900756,101080.0,101070.0,0.21839265]
[1762298001681,0.19900756,101080.0,101070.0,0.02051]
[1762298001921,0.19900756,101080.0,101070.0,0.30375587]
[1762298002863,0.00114449,101080.0,101070.0,0.32716587]
[1762298003101,0.19900756,101080.0,101070.0,0.32716587]
[1762298003331,0.00114449,101080.0,101070.0,0.32716587]
[1762298003537,0.19900756,101080.0,101070.0,0.32716587]
[1762298004803,0.19900756,101080.0,101070.0,0.21839265]
[1762298005464,0.29064044,101120.0,101070.0,0.21839265]
[1762298005465,0.00999999,101130.0,101120.0,0.19778481]
[1762298005584,0.0004,101150.0,101140.0,0.19774569]
[1762298005787,0.00088309,101150.0,101140.0,0.02163]
[1762298005987,0.01274309,101150.0,101140.0,0.00512]
[1762298006200,0.24978034,101150.0,101130.0,0.5783633]
[1762298006394,0.24978034,101150.0,101130.0,0.20287563]
[1762298006395,0.05205309,101150.0,101130.0,0.20287563]
[1762298006617,0.02843309,101150.0,101140.0,0.19774569]
[1762298007417,0.22615923,101150.0,101140.0,0.19774569]
[1762298007611,0.02843309,101150.0,101140.0,0.19774569]
[1762298007814,0.22615923,101150.0,101140.0,0.19774569]
[1762298008000,0.22615923,101150.0,101140.0,0.19874569]
[1762298008345,0.02843309,101150.0,101140.0,0.19874569]
[1762298008546,0.21046923,101150.0,101140.0,0.001]
[1762298008843,0.21046923,101150.0,101140.0,0.19874569]
[1762298008998,0.01274309,101150.0,101140.0,0.21525569]
[1762298009201,0.00088309,101150.0,101140.0,0.21525569]
[1762298010015,0.01274309,101150.0,101140.0,0.19874569]
[1762298010625,0.00088309,101150.0,101140.0,0.21525569]
[1762298010827,0.00088309,101150.0,101140.0,1.02152455]
[1762298011047,0.00088309,101150.0,101140.0,1.36152455]
[1762298012142,0.00088309,101150.0,101140.0,0.57866569]
[1762298014884,0.00088309,101150.0,101140.0,1.36152455]
[1762298016098,0.00088309,101150.0,101140.0,0.57866569]
[1762298016957,0.22639923,101150.0,101140.0,0.001]
[1762298017159,0.24988923,101150.0,101140.0,0.001]
[1762298017352,0.24988923,101150.0,101140.0,0.19874569]
[1762298017353,0.22639923,101150.0,101140.0,0.19874569]
[1762298017574,0.02867309,101150.0,101140.0,0.19874569]
[1762298017854,0.21067923,101150.0,101140.0,0.21470569]
[1762298017995,0.00088309,101150.0,101140.0,0.21470569]
[1762298018199,0.19860923,101150.0,101140.0,0.30006891]
[1762298018870,0.00088309,101150.0,101140.0,0.30006891]
[1762298019613,0.19860923,101150.0,101140.0,0.21470569]
[1762298019846,0.00088309,101150.0,101140.0,0.21470569]
[1762298020052,0.00088309,101150.0,101140.0,0.30006891]
[1762298020655,0.19860923,101150.0,101140.0,0.30006891]
[1762298020858,0.00088309,101150.0,101140.0,0.30006891]
[1762298021058,0.19860923,101150.0,101140.0,0.03961]
[1762298021261,0.19860923,101150.0,101140.0,0.23735569]
[1762298021461,0.00088309,101150.0,101140.0,1.02021455]
[1762298022350,0.00088309,101150.0,101140.0,1.36021455]
[1762298023111,0.00088309,101150.0,101140.0,1.40485455]
[1762298024306,0.00088309,101150.0,101140.0,1.40385455]
[1762298024645,0.00088309,101150.0,101140.0,1.40785455]
[1762298026304,0.00088309,101150.0,101140.0,0.62499569]
[1762298026716,0.00088309,101150.0,101140.0,0.71035891]
[1762298027303,0.19860923,101150.0,101140.0,0.71035891]
[1762298027529,0.00088309,101150.0,101140.0,0.70635891]
[1762298027904,0.00088309,101150.0,101140.0,0.70835891]
[1762298029925,0.19860923,101150.0,101140.0,0.62299569]
[1762298030131,0.25027923,101150.0,101140.0,0.19974569]
[1762298030326,0.22550923,101150.0,101140.0,0.002]
[1762298030579,0.22550923,101150.0,101140.0,0.19974569]
[1762298030922,0.21008923,101150.0,101140.0,0.21552569]
[1762298031105,0.21008923,101150.0,101140.0,0.29888891]
[1762298031564,0.00088309,101150.0,101140.0,0.90393321]
[1762298032424,0.00088309,101150.0,101140.0,0.94857321]
[1762298032643,0.00088309,101150.0,101140.0,1.28857321]
[1762298034373,0.00088309,101150.0,101140.0,1.32406088]
[1762298034816,0.00088309,101150.0,101140.0,1.28857321]
[1762298035459,0.00088309,101150.0,101140.0,1.37734359]
[1762298035716,0.00088309,101150.0,101140.0,1.36190201]
[1762298036750,0.00088309,101150.0,101140.0,1.27308188]
[1762298037464,0.00088309,101150.0,101140.0,0.69186758]
[1762298037665,0.00088309,101150.0,101140.0,1.32635059]
[1762298038979,0.00088309,101150.0,101140.0,0.74513629]
[1762298039224,0.00088309,101150.0,101140.0,1.32635059]
[1762298040890,0.00088309,101150.0,101140.0,0.74513629]
[1762298041293,0.00088309,101150.0,101140.0,1.32635059]
[1762298041871,0.00088309,101150.0,101140.0,0.11468871]
[1762298041872,0.21008923,101150.0,101140.0,0.11468871]
[1762298042096,0.22550923,101150.0,101140.0,0.08118841]
[1762298042279,0.21008923,101150.0,101140.0,0.25916569]
[1762298042611,0.00088309,101150.0,101140.0,0.98412162]
[1762298043058,0.00088309,101150.0,101140.0,1.32412162]
[1762298043311,0.00088309,101150.0,101140.0,1.49134192]
[1762298043714,0.00088309,101150.0,101140.0,1.34184192]
[1762298044390,0.00088309,101150.0,101140.0,1.34084192]
[1762298044927,0.00088309,101150.0,101140.0,1.3763871]
[1762298045355,0.00088309,101150.0,101140.0,1.34084192]
[1762298045560,0.01039999,101210.0,101170.0,0.08536322]
[1762298045842,0.06054649,101260.0,101240.0,0.00999998]
[1762298045843,0.01148,101250.0,101240.0,0.00999998]
[1762298046077,0.00014475,101250.0,101240.0,0.29118176]
[1762298046260,0.01162475,101250.0,101240.0,0.06084346]
[1762298046481,0.01162475,101250.0,101240.0,0.03422567]
[1762298046764,0.01162475,101250.0,101240.0,0.23177604]
[1762298047190,0.01162475,101250.0,101240.0,0.25839383]
[1762298047438,0.00014475,101250.0,101240.0,0.29700383]
[1762298047644,0.00114475,101250.0,101240.0,0.29700383]
[1762298048070,0.00114475,101250.0,101240.0,0.27038604]
[1762298048927,0.00114475,101250.0,101240.0,0.35574926]
[1762298049339,0.00114475,101250.0,101240.0,0.33291926]
[1762298049992,0.03085885,101260.0,101250.0,0.78874514]
[1762298050221,0.03085885,101260.0,101250.0,0.24576653]
[1762298050222,0.03134116,101260.0,101250.0,0.24576653]
[1762298051376,0.03134116,101260.0,101250.0,0.26969653]
[1762298051584,0.03134116,101260.0,101250.0,0.85091083]
[1762298052432,0.03134116,101260.0,101250.0,0.25969655]
[1762298052645,0.03134116,101260.0,101250.0,0.26069655]
[1762298052851,0.03134116,101260.0,101250.0,0.27069653]
[1762298054122,0.03134116,101260.0,101250.0,0.26969653]
[1762298054342,0.03134116,101260.0,101250.0,0.27069653]
[1762298055904,0.03134116,101260.0,101250.0,0.85191083]
[1762298056122,0.03134116,101260.0,101250.0,0.27069653]
[1762298056346,0.03134116,101260.0,101250.0,0.85191083]
[1762298056567,0.03134116,101260.0,101250.0,0.61069653]
[1762298056778,0.03134116,101260.0,101250.0,1.19191083]
[1762298058085,0.03134116,101260.0,101250.0,0.61069653]
[1762298058306,0.03134116,101260.0,101250.0,1.19191083]
[1762298058599,0.03134116,101260.0,101250.0,0.61069653]
[1762298058832,0.03134116,101260.0,101250.0,0.22701653]
[1762298058833,0.06963116,101260.0,101250.0,0.22701653]
[1762298059046,0.03134116,101260.0,101250.0,0.25536653]
[1762298059469,0.03134116,101260.0,101250.0,0.27929653]
[1762298059677,0.03134116,101260.0,101250.0,0.25536653]
[1762298060545,0.22885251,101260.0,101250.0,0.25536653]
[1762298060764,0.24419251,101260.0,101250.0,0.04150567]
[1762298060985,0.24419251,101260.0,101250.0,0.23903653]
[1762298061410,0.03134116,101260.0,101250.0,0.26081084]
[1762298061609,0.22885251,101260.0,101250.0,0.23688084]
[1762298062214,0.03134116,101260.0,101250.0,0.23688084]
[1762298062372,0.22885251,101260.0,101250.0,0.23688084]
[1762298062579,0.22885251,101260.0,101250.0,0.22055084]
[1762298062994,0.24419251,101260.0,101250.0,0.22055084]
[1762298063198,0.26714251,101260.0,101250.0,0.01099998]
[1762298063788,0.26714251,101260.0,101250.0,0.20853084]
[1762298064271,0.26714251,101260.0,101250.0,0.01099998]
[1762298064471,0.26714251,101260.0,101250.0,0.001]
[1762298064672,0.26714251,101260.0,101250.0,0.20853084]
[1762298065343,0.26714251,101260.0,101250.0,0.001]
[1762298065803,1.22453909,101260.0,101250.0,0.001]
[1762298066004,3.35454231,101260.0,101250.0,0.001]
[1762298066842,0.19753086,101250.0,101240.0,0.00999998]
[1762298067115,0.86501744,101250.0,101240.0,0.00999998]
[1762298067926,0.19756783,101240.0,101230.0,0.00999998]
[1762298068131,0.22051783,101240.0,101230.0,0.00999998]
[1762298068296,0.23585783,101240.0,101230.0,0.00999998]
[1762298068689,0.19758025,101230.0,101220.0,0.19758906]
[1762298068890,0.19758025,101230.0,101220.0,0.20758904]
[1762298069190,0.22051783,101240.0,101230.0,0.00999998]
[1762298069428,0.23585783,101240.0,101230.0,0.00999998]
[1762298069626,0.23585783,101240.0,101230.0,0.20756987]
[1762298069934,0.23585783,101240.0,101230.0,0.01099998]
[1762298070132,0.23585783,101240.0,101230.0,0.20856987]
[1762298071043,0.23585783,101240.0,101230.0,0.01099998]
[1762298071239,0.81707213,101240.0,101230.0,0.001]
[1762298071441,0.85325441,101240.0,101230.0,0.001]
[1762298071644,0.89785441,101240.0,101230.0,0.001]
[1762298072066,0.89785441,101240.0,101230.0,0.01099998]
[1762298072608,0.31664011,101240.0,101230.0,0.00999998]
[1762298073037,0.001,101240.0,101230.0,0.30910309]
[1762298073234,0.03134116,101260.0,101250.0,0.20753084]
[1762298073412,0.03134116,101260.0,101250.0,1.26707962]
[1762298073711,0.03134116,101260.0,101250.0,1.23178826]
[1762298074255,0.03134116,101260.0,101250.0,1.24982003]
[1762298074919,0.03134116,101260.0,101250.0,1.25182003]
[1762298075253,0.03134116,101260.0,101250.0,1.24982003]
[1762298075453,0.03134116,101260.0,101250.0,1.25582003]
[1762298075889,0.03134116,101260.0,101250.0,1.27422969]
[1762298076118,0.03134116,101260.0,101250.0,1.29822969]
[1762298076255,0.03134116,101260.0,101250.0,1.27422969]
[1762298076704,0.03134116,101260.0,101250.0,1.35959291]
[1762298076907,0.03134116,101260.0,101250.0,1.42859291]
[1762298077110,0.03134116,101260.0,101250.0,1.4462752]
[1762298077660,0.03134116,101260.0,101250.0,1.35764802]
[1762298078476,0.03134116,101260.0,101250.0,1.4282691]
[1762298079193,0.03134116,101260.0,101250.0,1.4386382]
[1762298080746,0.03134116,101260.0,101250.0,1.4146382]
[1762298084125,0.03134116,101260.0,101250.0,1.41461527]
[1762298084530,0.03134116,101260.0,101250.0,0.83340097]
[1762298084706,0.03134116,101260.0,101250.0,1.41461527]
[1762298085681,0.0004,101290.0,101280.0,0.54747233]
[1762298085881,0.00054463,101290.0,101280.0,1.33407125]
[1762298086079,0.00054463,101290.0,101280.0,1.28407125]
[1762298086080,0.00107092,101290.0,101280.0,1.28407125]
[1762298086230,0.00107092,101290.0,101280.0,1.23116336]
[1762298086392,0.00107092,101290.0,101280.0,1.26564764]
[1762298086759,0.00107092,101290.0,101280.0,0.63156233]
[1762298086935,0.00107092,101290.0,101280.0,1.29813985]
[1762298087121,0.00107092,101290.0,101280.0,1.92935415]
[1762298087317,0.00107092,101290.0,101280.0,1.90335415]
[1762298087519,0.0502,101300.0,101290.0,0.24363511]
[1762298087726,0.0502,101300.0,101290.0,1.00635325]
[1762298088110,0.0502,101300.0,101290.0,0.95635325]
[1762298088314,0.0502,101300.0,101290.0,0.9358094]
[1762298088885,0.0502,101300.0,101290.0,1.00635325]
[1762298089048,0.0502,101300.0,101290.0,1.01035325]
[1762298089243,0.0502,101300.0,101290.0,0.42913895]
[1762298089443,0.0502,101300.0,101290.0,0.9398094]
[1762298090443,0.0502,101300.0,101290.0,0.99254193]
[1762298090614,0.0502,101300.0,101290.0,0.94635966]
[1762298092360,0.0502,101300.0,101290.0,1.14378819]
[1762298095990,0.0252,101300.0,101290.0,1.14378819]
[1762298096493,0.0004,101330.0,101320.0,0.54739437]
[1762298096705,0.00054461,101330.0,101320.0,1.41373099]
[1762298096908,0.00054461,101330.0,101320.0,1.43647099]
[1762298097079,0.00054461,101330.0,101320.0,0.65782816]
[1762298097485,0.00054461,101330.0,101320.0,1.48647099]
[1762298097688,0.00054461,101330.0,101320.0,1.52183421]
[1762298098053,0.00254461,101330.0,101320.0,1.52183421]
[1762298098255,0.00254461,101330.0,101320.0,1.55695926]
[1762298098567,0.00254461,101330.0,101320.0,1.52183421]
[1762298098799,0.00254461,101330.0,101320.0,1.55695926]
[1762298099120,0.00054461,101330.0,101320.0,1.55695926]
[1762298100073,0.00054461,101330.0,101320.0,0.76831645]
[1762298100272,0.00154461,101330.0,101320.0,0.75197264]
[1762298100491,0.03499999,101400.0,101350.0,0.00986679]
[1762298100722,0.00048214,101400.0,101390.0,0.57360343]
[1762298100928,0.00048214,101400.0,101390.0,0.73221507]
[1762298101143,0.00048214,101400.0,101390.0,0.65961489]
[1762298101373,0.00048214,101400.0,101390.0,0.65962945]
[1762298101587,0.00048214,101400.0,101390.0,0.61450234]
[1762298101810,0.00048214,101400.0,101390.0,0.62550232]
[1762298102243,0.00048214,101400.0,101390.0,0.61550234]
[1762298102632,0.00048214,101400.0,101390.0,0.63788945]
[1762298102752,0.00048214,101400.0,101390.0,1.5246355]
[1762298102958,0.00048214,101400.0,101390.0,0.77239602]
[1762298103174,0.00048214,101400.0,101390.0,0.74600955]
[1762298104166,0.00048214,101400.0,101390.0,1.49835127]
[1762298104353,0.00048214,101400.0,101390.0,1.56591172]
[1762298105697,0.00048214,101400.0,101390.0,1.54820183]
[1762298107682,0.00048214,101400.0,101390.0,0.73580026]
[1762298108087,0.00048214,101400.0,101390.0,0.74580024]
[1762298108218,0.00048214,101400.0,101390.0,0.71082255]
[1762298108418,0.00048214,101400.0,101390.0,0.1245832]
[1762298108631,0.23676079,101400.0,101390.0,0.001]
[1762298108826,1.01540362,101400.0,101390.0,0.001]
[1762298109057,1.01540362,101400.0,101390.0,0.01099998]
[1762298109471,0.23676079,101400.0,101390.0,0.001]
[1762298109675,0.19729703,101370.0,101360.0,0.04234122]
[1762298109872,0.19729703,101370.0,101360.0,0.01609998]
[1762298110685,0.19729703,101370.0,101360.0,0.0061]
[1762298110887,0.20924703,101370.0,101360.0,0.01609998]
[1762298111088,0.22499703,101370.0,101360.0,0.21341647]
[1762298111313,0.22499703,101370.0,101360.0,0.01809998]
[1762298111576,1.04496039,101380.0,101360.0,0.23145647]
[1762298111577,0.26631756,101380.0,101360.0,0.23145647]
[1762298111781,0.24231756,101380.0,101370.0,0.29266023]
[1762298112039,0.04504,101380.0,101370.0,0.29266023]
[1762298112233,0.04504,101380.0,101370.0,0.0953632]
[1762298112455,0.24231756,101380.0,101370.0,0.0953632]
[1762298112809,0.24231756,101380.0,101370.0,0.20729701]
[1762298112944,0.25806756,101380.0,101370.0,0.00999998]
[1762298113146,0.28306756,101380.0,101370.0,0.00999998]
[1762298113404,0.24331756,101380.0,101370.0,0.20729701]
[1762298114384,0.04604,101380.0,101370.0,0.20729701]
[1762298114596,0.001,101380.0,101370.0,1.42734306]
[1762298114786,0.001,101380.0,101370.0,1.50033306]
[1762298114987,0.001,101380.0,101370.0,0.78290916]
[1762298115306,0.001,101380.0,101370.0,1.56155199]
[1762298115470,0.001,101380.0,101370.0,1.58799833]
[1762298115875,0.00048214,101400.0,101390.0,0.20725809]
[1762298116117,0.00048214,101400.0,101390.0,0.34340131]
[1762298117223,0.00048214,101400.0,101390.0,0.06077998]
[1762298117415,0.19772079,101400.0,101390.0,0.33190424]
[1762298117587,0.19772079,101400.0,101390.0,0.32041131]
[1762298117784,0.19772079,101400.0,101390.0,0.01175]
[1762298117985,0.21347079,101400.0,101390.0,0.02174998]
[1762298118300,0.23747079,101400.0,101380.0,0.19727601]
[1762298118498,0.20920811,101390.0,101380.0,0.01175]
[1762298118903,0.20920811,101390.0,101380.0,0.21902754]
[1762298119174,0.20920811,101390.0,101380.0,0.01175]
[1762298119367,0.24895811,101390.0,101380.0,0.00999998]
[1762298119775,0.22495811,101390.0,101380.0,0.00999998]
[1762298120622,0.19725811,101390.0,101380.0,0.22331754]
[1762298120818,0.26668079,101400.0,101390.0,0.00999998]
[1762298121040,0.19725811,101390.0,101380.0,0.20727559]
[1762298121224,0.19725811,101390.0,101380.0,0.19727561]
[1762298121422,0.20920811,101390.0,101380.0,0.20727559]
[1762298121579,0.01195,101390.0,101380.0,0.20727559]
[1762298122037,0.20920811,101390.0,101380.0,0.20727559]
[1762298122236,0.19772079,101400.0,101390.0,0.20725809]
[1762298122665,0.00048214,101400.0,101390.0,0.23504809]
[1762298122897,0.00348214,101400.0,101390.0,0.23504809]
[1762298123442,0.00048214,101400.0,101390.0,0.23504809]
[1762298123635,0.00148214,101400.0,101390.0,0.25803809]
[1762298124149,0.19872079,101400.0,101390.0,0.23504809]
[1762298124384,0.00148214,101400.0,101390.0,0.23504809]
[1762298124611,0.19872079,101400.0,101390.0,0.23504809]
[1762298124811,0.19872079,101400.0,101390.0,0.02174998]
[1762298124973,0.19872079,101400.0,101390.0,0.1071132]
[1762298125569,0.19725811,101390.0,101380.0,0.07302299]
[1762298125770,0.24895811,101390.0,101380.0,0.0380453]
[1762298126081,0.24895811,101390.0,101380.0,0.0262953]
[1762298127689,0.29102596,101350.0,101340.0,0.02648754]
[1762298127888,0.19735543,101340.0,101330.0,0.06146523]
[1762298128032,0.21310543,101340.0,101330.0,0.26884012]
[1762298128374,0.21310543,101340.0,101330.0,0.24235258]
[1762298128579,0.19735543,101340.0,101330.0,0.31531016]
[1762298128810,0.19735543,101340.0,101330.0,0.10189525]
[1762298128982,0.23710543,101340.0,101330.0,0.03497769]
[1762298129216,0.23710543,101340.0,101330.0,0.02652009]
[1762298129349,1.01574826,101340.0,101330.0,0.02652009]
[1762298129561,0.19737491,101330.0,101320.0,0.06149778]
[1762298129759,0.22507491,101330.0,101320.0,0.07149776]
[1762298129985,0.22507491,101330.0,101320.0,0.26889215]
[1762298130208,0.22507491,101330.0,101320.0,0.07149776]
[1762298130416,0.26403275,101350.0,101320.0,0.170783]
[1762298130658,0.26403275,101350.0,101340.0,0.20735541]
[1762298130861,0.26403275,101350.0,101340.0,0.29271863]
[1762298131070,0.05683,101350.0,101340.0,0.29271863]
[1762298131242,0.25416596,101350.0,101340.0,0.20735541]
[1762298131442,0.05683,101350.0,101340.0,0.20735541]
[1762298131650,0.19733596,101350.0,101340.0,0.22339541]
[1762298131969,0.04484,101350.0,101340.0,0.22339541]
[1762298132177,0.24313231,101360.0,101340.0,0.22339541]
[1762298132485,0.25410649,101360.0,101350.0,0.20733594]
[1762298132690,0.27810649,101360.0,101350.0,0.00999998]
[1762298132825,1.04849932,101360.0,101350.0,0.00999998]
[1762298133435,1.07249932,101360.0,101350.0,0.00999998]
[1762298133828,0.29785649,101360.0,101350.0,0.00999998]
[1762298135758,0.19733596,101350.0,101330.0,0.03075009]
[1762298135957,0.19735543,101340.0,101330.0,0.03075009]
[1762298136320,0.28234543,101340.0,101330.0,0.02652009]
[1762298136524,0.19739439,101320.0,101310.0,0.07324778]
[1762298136745,0.19739439,101320.0,101310.0,0.07339239]
[1762298137117,0.28238439,101320.0,101310.0,0.01014459]
[1762298137317,1.06102722,101320.0,101310.0,0.01014459]
[1762298138072,1.40102722,101320.0,101310.0,0.00014461]
[1762298138286,0.62238439,101320.0,101310.0,0.00014461]
[1762298138487,1.40102722,101320.0,101310.0,0.00214461]
[1762298138686,3.4372095,101320.0,101310.0,0.00214461]
[1762298138907,3.4372095,101320.0,101310.0,0.00014461]
[1762298139384,3.44721561,101320.0,101280.0,0.02673409]
[1762298139589,3.44721561,101320.0,101260.0,0.03537769]
[1762298139590,2.0,101280.0,101260.0,0.03537769]
[1762298139795,1.44895696,101270.0,101260.0,0.00054463]
[1762298139998,0.01149,101270.0,101260.0,0.00054463]
[1762298140218,0.04496,101290.0,101270.0,0.24290587]
[1762298140422,0.04496,101290.0,101280.0,0.35542]
[1762298140635,0.20892517,101300.0,101280.0,0.35542]
[1762298140636,0.19743351,101300.0,101280.0,0.37802]
[1762298140834,0.19743351,101300.0,101280.0,0.60200763]
[1762298141619,0.19743351,101300.0,101290.0,0.19745285]
[1762298141822,0.19743351,101300.0,101280.0,0.60200763]
[1762298142061,0.20043351,101300.0,101280.0,0.60200763]
[1762298142258,0.19745285,101290.0,101280.0,0.60200763]
[1762298142463,0.19745285,101290.0,101280.0,0.23549235]
[1762298142715,0.19747235,101280.0,101270.0,0.03791009]
[1762298142914,0.19747235,101280.0,101270.0,0.02681]
[1762298143523,0.19747235,101280.0,101270.0,0.22430185]
[1762298144037,0.24253285,101290.0,101270.0,0.24690185]
[1762298144369,0.24353285,101290.0,101270.0,0.24690185]
[1762298144572,0.001,101290.0,101280.0,0.24545493]
[1762298144779,0.04504,101290.0,101280.0,0.23549235]
[1762298145243,0.24249285,101290.0,101280.0,0.03802]
[1762298145446,0.19747235,101280.0,101270.0,0.54888185]
[1762298145577,0.29493285,101290.0,101270.0,0.54888185]
[1762298145784,0.25586285,101290.0,101280.0,0.19747235]
[1762298145983,0.24349285,101290.0,101280.0,0.23549235]
[1762298146373,0.24349285,101290.0,101280.0,0.01542]
[1762298146575,0.19747235,101280.0,101270.0,0.57540194]
[1762298146772,0.19747235,101280.0,101270.0,0.35139]
[1762298147085,0.19747235,101280.0,101270.0,0.47477322]
[1762298147290,0.19747235,101280.0,101270.0,0.67226507]
[1762298147489,0.05741,101290.0,101280.0,0.19747235]
[1762298147691,0.04804,101290.0,101280.0,0.19747235]
[1762298147888,0.003,101290.0,101280.0,0.21289235]
[1762298148115,0.003,101290.0,101270.0,0.65684507]
[1762298148116,0.19747235,101280.0,101270.0,0.58527653]
[1762298148332,0.19747235,101280.0,101270.0,0.55875644]
[1762298148720,0.20982313,101290.0,101280.0,0.19747235]
[1762298148874,0.21082313,101290.0,101270.0,0.58135644]
[1762298149074,0.21082313,101290.0,101280.0,0.08536322]
[1762298149328,0.20982313,101290.0,101280.0,0.08536322]
[1762298149536,0.01237,101290.0,101280.0,0.28283557]
[1762298149713,0.20982285,101290.0,101280.0,0.28283557]
[1762298149917,0.24989285,101290.0,101270.0,0.01139]
[1762298150142,0.05244,101290.0,101280.0,0.19747235]
[1762298150299,0.05244,101290.0,101280.0,0.21289235]
[1762298150300,0.24249285,101290.0,101280.0,0.21289235]
[1762298150629,0.25486285,101290.0,101270.0,0.3266851]
[1762298150835,0.02383,101280.0,101260.0,0.06204241]
[1762298151008,0.01237,101270.0,101260.0,0.00054463]
[1762298151413,0.20986185,101270.0,101260.0,0.08618357]
[1762298151612,0.04504,101270.0,101260.0,0.3321124]
[1762298151976,0.04504,101280.0,101270.0,0.19849185]
[1762298152176,0.04504,101280.0,101270.0,0.22109185]
[1762298152302,0.04504,101280.0,101270.0,0.23673743]
[1762298152506,0.26473549,101290.0,101270.0,0.23673743]
[1762298152707,0.26473549,101290.0,101280.0,0.08536322]
[1762298153880,0.19747235,101280.0,101270.0,0.00022558]
[1762298154156,0.79331832,101280.0,101270.0,0.00022558]
[1762298154320,0.81714832,101280.0,101270.0,0.00022558]
[1762298155151,0.23754235,101280.0,101270.0,0.00022558]
[1762298155376,0.19747235,101280.0,101270.0,0.19771743]
[1762298155541,0.21969549,101290.0,101270.0,0.23573743]
[1762298155733,0.26469549,101290.0,101280.0,0.08536322]
[1762298155947,0.19745285,101290.0,101280.0,0.1339674]
[1762298156143,0.19745285,101290.0,101280.0,0.12338322]
[1762298156815,0.19745285,101290.0,101280.0,0.10078322]
[1762298157089,0.19745285,101290.0,101280.0,0.29825557]
[1762298157303,0.19745285,101290.0,101280.0,0.32085557]
[1762298157746,0.19945285,101290.0,101280.0,0.32085557]
[1762298157964,0.19945285,101290.0,101280.0,0.12338322]
[1762298158127,0.19745285,101290.0,101280.0,0.10078322]
[1762298158302,0.19945285,101290.0,101280.0,0.10078322]
[1762298158896,0.19747235,101280.0,101270.0,0.02282558]
[1762298159138,0.19747235,101280.0,101270.0,0.00022558]
[1762298159339,0.19747235,101280.0,101270.0,0.01564558]
[1762298160321,0.19747235,101280.0,101270.0,0.00022558]
[1762298161385,0.21371235,101280.0,101270.0,0.00022558]
[1762298161799,0.86210832,101280.0,101270.0,0.00022558]
[1762298164112,0.8982906,101280.0,101270.0,0.00022558]
[1762298164318,3.82710682,101280.0,101270.0,0.00022558]